bitfinex/quotes_ETHUSD_20250720
["timestamp","ask_amount","ask_price","bid_price","bid_amount"]
[1753049561499,12.02774308,3731.7,3731.6,0.001]
[1753049561699,16.52974308,3731.7,3731.6,0.001]
[1753049561993,16.96724308,3731.7,3731.6,0.001]
[1753049562198,17.93259075,3731.7,3731.6,0.001]
[1753049562398,7.91489148,3731.7,3731.6,0.001]
[1753049562599,4.79764767,3731.7,3731.6,0.001]
[1753049562757,0.7838,3732.1,3732.0,2.6795284]
[1753049563100,0.7838,3732.5,3731.6,0.8091]
[1753049563268,0.1336,3731.9,3731.7,3.13409463]
[1753049563475,0.1336,3731.9,3731.6,0.001]
[1753049563476,1.2152,3731.8,3731.6,0.001]
[1753049563668,3.51942949,3731.7,3731.6,0.001]
[1753049563882,3.99042628,3731.7,3731.6,0.001]
[1753049564087,12.50612555,3731.7,3731.6,0.001]
[1753049564285,12.47262876,3731.7,3731.6,0.001]
[1753049564589,17.79332876,3731.7,3731.6,0.001]
[1753049565166,17.79332876,3731.7,3731.1,0.02]
[1753049565167,2.68010291,3731.2,3731.1,0.02]
[1753049565406,11.584916,3731.2,3731.1,0.02]
[1753049565569,11.98891472,3731.2,3731.1,0.02]
[1753049565918,7.48691472,3731.2,3731.1,0.02]
[1753049566069,11.98891472,3731.2,3731.1,0.02]
[1753049566567,4.36931181,3731.2,3731.1,0.02]
[1753049566905,5.87131181,3731.2,3731.1,0.02]
[1753049567203,8.55141472,3731.2,3731.1,0.02]
[1753049567388,5.87131181,3731.2,3731.1,0.02]
[1753049567589,5.03801181,3731.2,3731.1,0.02]
[1753049567803,0.53601181,3731.2,3731.1,0.02]
[1753049568104,8.188116,3731.2,3731.1,0.02]
[1753049568402,11.15461472,3731.2,3731.1,0.02]
[1753049568602,11.90811472,3731.2,3731.1,0.02]
[1753049570011,19.67811472,3731.2,3731.1,0.02]
[1753049572727,13.55951181,3731.2,3731.1,0.021]
[1753049572900,16.23961472,3731.2,3731.1,0.021]
[1753049573100,19.23961472,3731.2,3731.1,0.021]
[1753049573594,4.5,3731.2,3731.1,0.021]
[1753049574000,7.21360419,3731.2,3731.1,0.021]
[1753049574205,10.61760291,3731.2,3731.1,0.021]
[1753049574539,11.38780291,3731.2,3731.1,0.021]
[1753049574708,3.43177767,3730.4,3730.3,0.001]
[1753049575029,11.27395544,3730.4,3730.3,0.001]
[1753049575236,11.27395544,3730.4,3730.3,1e-08]
[1753049575237,11.71145544,3730.4,3730.3,1e-08]
[1753049575438,3.0,3729.3,3727.5,0.4544]
[1753049575613,2.68225953,3728.2,3727.5,1.2424]
[1753049575941,4.499,3728.2,3727.5,1.2424]
[1753049576236,4.2253,3728.2,3727.1,0.02]
[1753049576437,1.2253,3728.2,3727.1,0.02]
[1753049576602,5.51569927,3728.8,3727.2,0.4544]
[1753049576603,0.7599,3728.8,3727.2,0.4544]
[1753049576800,4.498,3728.7,3728.2,2.68225923]
[1753049577016,4.498,3729.0,3728.4,0.7866]
[1753049577227,6.429,3729.6,3728.4,0.7866]
[1753049577228,4.498,3729.1,3728.5,0.4544]
[1753049577432,4.498,3729.1,3728.6,2.68197178]
[1753049577605,4.498,3729.1,3728.7,0.4544]
[1753049578132,4.498,3729.1,3728.8,0.4298]
[1753049578340,2.68178082,3728.9,3728.3,0.4298]
[1753049578506,4.53252284,3728.8,3728.1,2.68231382]
[1753049578706,4.53252284,3728.8,3727.9,1.1799]
[1753049578907,2.68206945,3728.5,3727.9,0.7501]
[1753049579113,0.4602,3729.2,3727.5,3.11255258]
[1753049579114,4.53152644,3728.4,3727.5,0.4298]
[1753049579313,4.498,3728.4,3727.7,2.68260082]
[1753049579610,7.18012194,3728.4,3727.6,2.68267896]
[1753049580023,4.498,3728.3,3727.7,0.01363508]
[1753049580343,0.8276,3730.0,3727.9,0.8043]
[1753049580526,0.34317777,3730.4,3728.2,0.8043]
[1753049580710,0.34317777,3730.4,3728.1,2.68233148]
[1753049580711,4.498,3730.1,3729.8,2.6811089]
[1753049580912,4.498,3730.1,3729.5,2.68130336]
[1753049580913,4.498,3730.1,3729.5,0.823]
[1753049581138,0.05350398,3730.9,3729.8,2.6811089]
[1753049581304,2.68125268,3729.6,3728.4,0.823]
[1753049581502,4.76612527,3729.5,3728.5,0.4298]
[1753049581826,0.26812527,3729.5,3728.5,0.4298]
[1753049582024,4.498,3729.7,3728.7,2.68189985]
[1753049582225,4.498,3729.7,3729.6,2.68124412]
[1753049582424,0.7981,3730.8,3729.8,2.6811089]
[1753049582610,0.7981,3730.8,3729.7,3.12451934]
[1753049582611,4.498,3730.6,3729.7,3.12451934]
[1753049582815,2.68062483,3730.5,3729.5,2.68127176]
[1753049583045,4.498,3730.0,3728.8,0.4298]
[1753049583219,3.18636113,3729.9,3729.1,2.68155838]
[1753049583536,3.18636113,3729.9,3728.9,2.68175601]
[1753049583537,6.95127091,3729.9,3728.9,2.68169147]
[1753049583745,6.95127091,3729.9,3728.5,0.7965]
[1753049583746,0.49371386,3729.8,3728.5,0.7965]
[1753049583901,3.03351475,3729.7,3728.1,2.68233012]
[1753049584102,2.68173619,3729.0,3728.2,2.68223752]
[1753049584301,1.2367,3729.9,3728.0,1.2497]
[1753049584302,4.53052195,3728.9,3728.0,1.2497]
[1753049584626,2.68205765,3728.5,3727.5,3.4866186]
[1753049584825,2.68189985,3728.7,3727.6,2.68267799]
[1753049585004,1.6969,3729.9,3727.7,0.44343293]
[1753049585208,3.0,3729.7,3728.4,2.68210952]
[1753049585433,2.68153276,3729.3,3728.2,2.68225064]
[1753049585607,4.497,3729.2,3728.1,0.4298]
[1753049585806,4.497,3729.2,3728.5,2.68202642]
[1753049586004,1.2451,3729.9,3728.2,0.01362107]
[1753049586224,0.1336,3728.8,3728.6,0.4298]
[1753049586544,0.1336,3728.8,3728.7,3.11169985]
[1753049586705,0.1336,3729.3,3729.2,2.68149592]
[1753049586907,0.1336,3729.3,3728.9,0.4298]
[1753049587223,0.1336,3728.7,3728.6,2.68197178]
[1753049587528,0.1336,3728.7,3728.6,3.11177178]
[1753049588030,0.1336,3728.7,3728.2,2.68225477]
[1753049588325,0.03352464,3728.6,3727.4,0.5634]
[1753049588502,0.1336,3728.1,3727.3,0.8149]
[1753049588703,4.496,3728.5,3727.1,0.1536]
[1753049588704,0.7814,3728.3,3727.1,0.02]
[1753049588905,3.59797918,3727.2,3727.1,0.02]
[1753049589106,3.0,3727.1,3726.1,0.1536]
[1753049589305,2.81729921,3726.2,3726.1,0.02]
[1753049589538,6.59869921,3726.2,3726.1,0.02]
[1753049589739,7.05889921,3726.2,3726.1,1e-08]
[1753049590609,11.55489921,3726.2,3726.1,1e-08]
[1753049591234,7.05889921,3726.2,3726.1,1e-08]
[1753049591442,8.03314985,3726.2,3726.1,1e-08]
[1753049592120,12.52814985,3726.2,3726.1,1e-08]
[1753049592509,8.03314985,3726.2,3726.1,1e-08]
[1753049592718,12.52814985,3726.2,3726.1,1e-08]
[1753049593257,12.52814985,3726.2,3724.7,0.004]
[1753049593258,2.6847079,3724.8,3724.7,0.004]
[1753049593411,2.68441962,3725.2,3724.7,0.004]
[1753049593612,4.52855614,3725.1,3724.7,0.004]
[1753049593951,0.03355614,3725.1,3724.7,0.004]
[1753049594159,4.496,3725.3,3724.8,0.4298]
[1753049594324,0.03354894,3725.9,3724.8,0.4298]
[1753049594527,0.03354443,3726.4,3724.8,0.4298]
[1753049594711,0.7848,3726.6,3725.4,3.51027551]
[1753049594913,0.03354353,3726.5,3725.5,0.4298]
[1753049595118,4.496,3726.7,3725.6,2.68413141]
[1753049595317,0.24321567,3727.0,3726.8,2.68323357]
[1753049595523,6.435,3727.6,3726.3,2.68359465]
[1753049595524,0.1336,3726.4,3726.3,2.68359465]
[1753049596062,0.1336,3726.7,3726.4,2.68348666]
[1753049596265,0.1336,3726.7,3726.0,0.1336]
[1753049596433,2.68348516,3726.5,3725.4,1.2558]
[1753049596630,2.68348516,3726.5,3725.3,0.001]
[1753049596631,0.1336,3725.9,3725.3,0.001]
[1753049596863,4.497,3725.8,3725.3,0.001]
[1753049597157,2.68427551,3725.4,3725.3,0.001]
[1753049597522,6.17802895,3725.4,3725.3,0.001]
[1753049597759,6.90637551,3725.4,3725.3,1e-08]
[1753049597942,8.27780895,3725.4,3725.3,1e-08]
[1753049598144,12.77380895,3725.4,3725.3,1e-08]
[1753049598465,13.37380895,3725.4,3725.3,1e-08]
[1753049599460,8.87780895,3725.4,3725.3,1e-08]
[1753049599659,13.37480895,3725.4,3725.3,1e-08]
[1753049600321,13.37480895,3725.4,3723.6,0.4298]
[1753049600322,0.03,3724.1,3723.1,0.02]
[1753049600566,5.71586162,3723.2,3723.1,0.02]
[1753049600723,3.52377327,3723.2,3723.1,0.02]
[1753049600926,4.56057327,3723.2,3723.1,0.02]
[1753049601124,0.06357327,3723.2,3723.1,0.02]
[1753049601338,2.71586162,3723.2,3723.1,0.02]
[1753049601538,7.72638117,3723.2,3723.1,0.02]
[1753049601756,5.04051955,3723.2,3723.1,0.02]
[1753049601958,11.18658117,3723.2,3723.1,0.02]
[1753049602159,2.6865832,3722.2,3722.1,0.02]
[1753049602473,4.53258229,3722.2,3722.1,0.02]
[1753049602625,2.68629864,3722.6,3722.1,0.02]
[1753049602966,4.499,3722.5,3722.1,0.02]
[1753049603166,1.00371955,3723.2,3722.1,2.70659806]
[1753049603341,4.499,3723.1,3722.1,0.02]
[1753049603662,5.04018345,3723.1,3722.1,0.02]
[1753049604022,0.13756681,3723.2,3722.1,0.02]
[1753049604023,0.13756681,3723.2,3722.2,0.4298]
[1753049604224,0.8267,3723.7,3722.5,0.8251]
[1753049604425,6.437,3724.0,3722.7,2.68622236]
[1753049604426,4.499,3723.6,3722.7,2.68622236]
[1753049604663,4.499,3723.6,3723.0,2.68594688]
[1753049604838,4.499,3723.6,3722.8,0.4298]
[1753049605040,6.437,3724.0,3722.8,0.4298]
[1753049605244,4.53256695,3723.9,3722.8,0.4298]
[1753049605455,2.68542886,3723.8,3722.9,2.68607805]
[1753049605639,4.499,3723.9,3722.8,0.4298]
[1753049606160,4.53256695,3723.9,3722.8,0.4298]
[1753049606388,7.15697,3724.0,3722.8,0.4298]
[1753049606583,7.15697,3724.0,3722.9,0.01771986]
[1753049606742,6.437,3724.0,3723.9,2.68535674]
[1753049606939,0.02,3724.9,3724.2,2.68507637]
[1753049607157,0.02,3724.9,3723.5,0.7876]
[1753049607158,4.53255884,3724.8,3723.5,0.7876]
[1753049607355,0.7852,3723.6,3722.3,0.7876]
[1753049607529,2.68643885,3722.4,3722.3,0.7876]
[1753049607865,2.6865832,3722.2,3721.3,0.4705]
[1753049608028,2.6865832,3722.2,3721.2,0.8174]
[1753049608659,3.1380832,3722.2,3721.2,0.8174]
[1753049608871,3.1380832,3722.2,3721.1,0.02]
[1753049608872,2.68730517,3721.2,3721.1,0.02]
[1753049609382,2.68730517,3721.2,3721.1,1e-08]
[1753049609383,12.08928995,3721.2,3721.1,1e-08]
[1753049609770,6.91860517,3721.2,3721.1,1e-08]
[1753049609976,11.42260517,3721.2,3721.1,1e-08]
[1753049610148,11.42360517,3721.2,3721.1,1e-08]
[1753049610483,8.32968701,3721.2,3721.1,1e-08]
[1753049610685,12.83368701,3721.2,3721.1,1e-08]
[1753049610983,0.6,3721.2,3721.1,1e-08]
[1753049611185,2.68730517,3721.2,3721.1,1e-08]
[1753049611373,2.68679558,3722.0,3721.1,1e-08]
[1753049611573,0.7936,3722.1,3721.1,1e-08]
[1753049611890,4.563,3722.0,3721.1,1e-08]
[1753049612191,0.58081,3721.9,3721.1,1e-08]
[1753049612350,4.568,3722.0,3721.2,0.4705]
[1753049612550,0.8302,3723.3,3721.5,2.68708853]
[1753049612745,0.8302,3723.3,3721.7,2.68694413]
[1753049612982,0.8302,3723.8,3721.8,0.4705]
[1753049613288,0.1336,3722.3,3722.2,3.4404832]
[1753049613488,4.569,3723.1,3722.2,1.2244]
[1753049613782,0.1336,3722.6,3722.2,1.2244]
[1753049613999,0.72932,3723.7,3722.3,0.4705]
[1753049614000,4.573,3722.9,3722.3,0.4705]
[1753049614204,0.1336,3722.2,3721.8,0.4705]
[1753049614403,0.1336,3722.1,3721.9,0.4705]
[1753049614701,5.3981,3722.7,3721.6,0.7613]
[1753049614908,0.1336,3721.7,3721.6,0.7613]
[1753049615079,2.68615109,3722.8,3721.1,1e-08]
[1753049615409,0.8251,3722.9,3721.7,2.68694413]
[1753049615410,0.1336,3721.8,3721.7,2.68694413]
[1753049615581,0.02,3723.9,3722.8,2.68611312]
[1753049615785,0.02,3723.9,3722.7,0.8202]
[1753049616301,0.1336,3722.7,3722.1,0.8202]
[1753049616513,0.4515,3723.6,3722.1,0.8202]
[1753049616711,2.68462598,3725.0,3722.2,0.4705]
[1753049616888,0.1336,3722.8,3722.3,0.39773025]
[1753049617087,4.584,3723.5,3722.1,0.8202]
[1753049617088,0.6,3723.3,3722.4,0.4705]
[1753049617493,2.68573052,3723.4,3722.6,2.68628543]
[1753049617800,2.68580003,3723.3,3722.5,2.68635037]
[1753049618001,4.583,3723.6,3722.1,0.8202]
[1753049618179,0.4515,3723.6,3722.2,2.6865832]
[1753049618379,2.68591448,3723.2,3722.4,2.68643885]
[1753049618592,0.02,3723.9,3722.3,0.4705]
[1753049618810,2.68550098,3723.7,3722.3,0.4705]
[1753049619119,2.68580897,3723.3,3722.5,2.68634553]
[1753049619301,2.68593258,3723.2,3722.3,3.05699663]
[1753049619617,0.02,3723.9,3722.3,1.02688423]
[1753049619918,2.68595766,3723.1,3722.3,3.05694417]
[1753049620102,4.576,3723.8,3722.3,0.3705]
[1753049620506,0.4715,3723.9,3722.3,0.3705]
[1753049620507,0.02,3723.9,3722.3,0.3705]
[1753049620817,2.68555233,3723.7,3722.9,2.68607525]
[1753049621025,0.7795,3723.8,3722.0,0.4705]
[1753049621205,2.68572461,3723.4,3722.3,0.8001]
[1753049621406,1.49533679,3723.7,3722.4,0.4705]
[1753049621608,4.574,3723.6,3722.4,0.4705]
[1753049621787,4.574,3723.6,3723.2,2.68579954]
[1753049621984,4.574,3723.6,3722.4,0.4705]
[1753049621985,0.02,3723.9,3723.8,2.68542886]
[1753049622314,0.02,3723.9,3723.7,2.68544692]
[1753049622622,0.02,3723.9,3723.5,0.4705]
[1753049622822,2.68563194,3723.6,3722.8,2.6861007]
[1753049623118,2.68542886,3723.8,3722.5,0.7762]
[1753049623285,2.68574663,3723.4,3722.6,2.68624083]
[1753049623689,2.68564522,3723.5,3722.5,0.7762]
[1753049623910,2.68587822,3723.2,3722.5,3.46251399]
[1753049624097,0.6,3723.6,3722.5,0.7762]
[1753049624415,0.6,3723.6,3721.5,2.68706923]
[1753049624416,2.68660285,3722.2,3721.8,0.4705]
[1753049624717,0.4515,3723.5,3721.8,0.4705]
[1753049624718,4.566,3723.0,3721.8,0.4705]
[1753049624922,0.72519733,3722.9,3721.8,0.4705]
[1753049625246,1.50989733,3722.9,3721.7,0.7642]
[1753049625408,0.4515,3722.8,3721.7,0.7642]
[1753049625613,2.68643787,3722.5,3721.7,3.45113033]
[1753049625784,1.50989733,3722.9,3721.7,3.45113033]
[1753049625785,2.68629452,3722.6,3721.7,1.2347]
[1753049625989,4.98461919,3722.6,3721.7,0.7642]
[1753049626251,2.68678553,3722.0,3721.4,3.15765822]
[1753049626446,4.565,3722.5,3721.4,0.4705]
[1753049626610,2.68655846,3722.3,3721.6,2.68695912]
[1753049626783,2.68578948,3723.3,3721.7,0.4705]
[1753049626989,4.95922895,3723.2,3721.8,0.8276]
[1753049627324,0.1336,3722.4,3721.8,0.8276]
[1753049627690,0.24494543,3722.3,3721.8,0.8276]
[1753049628020,7.64514355,3723.2,3721.8,0.8276]
[1753049628021,0.24494543,3722.2,3721.8,0.8276]
[1753049628227,0.24494543,3722.1,3721.4,0.828]
[1753049628425,0.24494543,3722.0,3721.4,0.828]
[1753049628588,0.24494543,3722.3,3721.4,0.828]
[1753049628919,2.68691922,3721.8,3721.4,0.828]
[1753049629154,2.68681166,3721.9,3721.4,0.828]
[1753049629456,0.24494543,3722.0,3721.5,0.4705]
[1753049629755,0.24494543,3721.9,3721.4,0.828]
[1753049629975,0.24494543,3722.2,3721.4,0.828]
[1753049630272,2.93161608,3722.1,3721.4,3.98565175]
[1753049630487,0.24494543,3722.1,3721.4,1.2985]
[1753049630617,3.43533949,3722.2,3721.4,0.828]
[1753049630618,2.68688367,3721.8,3721.4,0.828]
[1753049630817,2.68670134,3722.1,3721.4,0.828]
[1753049631022,0.74874646,3722.2,3721.4,0.828]
[1753049631259,0.1336,3721.5,3721.4,3.98562207]
[1753049631658,4.548,3722.5,3721.4,1.2985]
[1753049631819,0.39622895,3723.2,3722.4,2.68638967]
[1753049632020,0.1336,3722.5,3722.4,0.8264]
[1753049632258,0.37828925,3722.5,3722.0,0.8264]
[1753049632560,0.37828925,3722.5,3721.1,2.68735237]
[1753049632561,2.68656337,3722.3,3721.6,3.51341299]
[1753049632764,2.68671372,3722.1,3721.6,0.8264]
[1753049632961,0.24468925,3722.0,3721.6,0.8264]
[1753049633134,0.4515,3722.5,3721.1,1e-08]
[1753049633135,0.4515,3722.5,3721.2,0.7771]
[1753049633334,2.93127064,3722.4,3721.6,2.68701421]
[1753049633538,3.34800956,3722.3,3721.6,2.68694781]
[1753049633746,2.9314265,3722.2,3721.4,3.15763797]
[1753049633927,0.24482733,3722.1,3721.4,3.15763797]
[1753049634131,0.24482733,3722.0,3721.4,0.4705]
[1753049634461,2.68687194,3721.8,3721.2,0.7771]
[1753049634662,0.56184971,3721.7,3721.2,0.7771]
[1753049634969,0.41662706,3722.3,3721.3,3.15770811]
[1753049635256,2.68687192,3721.9,3721.3,0.4705]
[1753049635434,0.2448004,3722.2,3721.2,0.7771]
[1753049635435,2.68661937,3722.2,3721.2,0.7771]
[1753049635619,2.68710779,3721.5,3721.2,0.7771]
[1753049635820,7.47251938,3722.1,3721.1,1e-08]
[1753049635821,2.68730517,3721.2,3721.1,1e-08]
[1753049636586,4.542,3722.1,3721.1,0.47050001]
[1753049636724,0.3,3722.0,3721.1,3.15786907]
[1753049636922,4.542,3722.1,3721.5,2.68704158]
[1753049637118,6.444,3722.5,3721.1,0.47050001]
[1753049637323,4.78700155,3722.4,3721.1,0.47050001]
[1753049637553,0.24500155,3722.3,3721.2,2.68724232]
[1753049637758,2.68656238,3722.3,3721.1,0.47050001]
[1753049637926,0.24498403,3722.2,3721.3,2.68723295]
[1753049638126,2.68857562,3722.3,3721.6,2.6870161]
[1753049638323,2.68673314,3722.0,3721.3,2.68717637]
[1753049638556,0.24502613,3721.9,3721.3,2.68722643]
[1753049638758,0.24502613,3721.8,3721.3,2.68720168]
[1753049638966,0.24502613,3721.7,3721.1,0.47150001]
[1753049639180,0.4564,3722.2,3721.1,0.00100001]
[1753049639344,0.24500584,3722.1,3721.5,2.68704097]
[1753049639527,0.24500584,3722.0,3721.5,2.68704097]
[1753049639727,0.24498,3721.9,3721.5,2.68704097]
[1753049639956,0.002,3722.3,3721.1,0.45150001]
[1753049639957,0.24498,3721.8,3721.1,0.45150001]
[1753049640137,0.24498,3721.7,3721.6,2.68701633]
[1753049640367,0.24498,3721.7,3721.6,4.45193176]
[1753049640564,0.002,3722.3,3722.1,2.68665538]
[1753049640767,0.24495205,3722.2,3721.6,1.76491543]
[1753049640977,0.7674,3722.0,3721.1,0.00100001]
[1753049641179,0.24495205,3721.9,3721.1,0.00100001]
[1753049641386,0.40418859,3721.8,3721.1,0.00100001]
[1753049641584,3.48810517,3721.2,3721.1,0.00100001]
[1753049641741,8.08069648,3721.2,3721.1,0.00100001]
[1753049641952,8.50450517,3721.2,3721.1,0.00100001]
[1753049642210,11.50450517,3721.2,3721.1,1e-08]
[1753049642342,12.92367657,3721.2,3721.1,1e-08]
[1753049642549,8.36367657,3721.2,3721.1,1e-08]
[1753049642942,12.92467657,3721.2,3721.1,1e-08]
[1753049643443,8.36367657,3721.2,3721.1,1e-08]
[1753049643645,12.92467657,3721.2,3721.1,1e-08]
[1753049643840,7.2353714,3721.2,3721.1,1e-08]
[1753049644036,9.46627657,3721.2,3721.1,1e-08]
[1753049644340,9.92267657,3721.2,3721.1,1e-08]
[1753049644877,15.74067657,3721.2,3721.1,1e-08]
[1753049645244,12.92267657,3721.2,3721.1,1e-08]
[1753049645653,8.36367657,3721.2,3721.1,1e-08]
[1753049645957,12.92267657,3721.2,3721.1,1e-08]
[1753049646474,8.36367657,3721.2,3721.1,1e-08]
[1753049646637,12.92167657,3721.2,3721.1,1e-08]
[1753049646838,12.92267657,3721.2,3721.1,1e-08]
[1753049647866,8.36367657,3721.2,3721.1,1e-08]
[1753049648069,5.36367657,3721.2,3721.1,1e-08]
[1753049648377,8.50350517,3721.2,3721.1,1e-08]
[1753049648766,11.50350517,3721.2,3721.1,1e-08]
[1753049649089,6.94450517,3721.2,3721.1,1e-08]
[1753049649481,11.50450517,3721.2,3721.1,1e-08]
[1753049649797,8.32157151,3721.2,3721.1,1e-08]
[1753049650095,4.558,3721.2,3721.1,1e-08]
[1753049650481,2.68673118,3722.0,3721.1,1.25230001]
[1753049650795,2.68712726,3721.5,3721.1,0.80180001]
[1753049650995,0.4564,3722.2,3721.1,0.80180001]
[1753049651158,0.6,3721.6,3721.2,0.4505]
[1753049651358,4.556,3722.0,3721.3,0.4505]
[1753049651563,4.556,3722.0,3721.1,0.80180001]
[1753049651564,0.7948,3721.8,3721.1,1e-08]
[1753049651895,2.68730517,3721.2,3721.1,1e-08]
[1753049652193,7.27589648,3721.2,3721.1,1e-08]
[1753049652368,7.24230517,3721.2,3721.1,1e-08]
[1753049652569,7.69870517,3721.2,3721.1,1e-08]
[1753049652778,8.73729247,3721.2,3721.1,1e-08]
[1753049652955,9.53209247,3721.2,3721.1,1e-08]
[1753049653158,4.97709247,3721.2,3721.1,1e-08]
[1753049653362,9.52809247,3721.2,3721.1,1e-08]
[1753049653894,12.52809247,3721.2,3721.1,1e-08]
[1753049654895,7.97709247,3721.2,3721.1,1e-08]
[1753049655056,14.13109247,3721.2,3721.1,1e-08]
[1753049655258,12.52509247,3721.2,3721.1,1e-08]
[1753049655472,12.52509247,3721.2,3716.9,0.8252]
[1753049655473,0.01,3720.8,3716.9,0.8252]
[1753049655669,4.69531553,3721.2,3715.9,0.00431586]
[1753049655670,4.14298333,3718.0,3715.9,0.00431586]
[1753049655866,2.69019692,3717.2,3715.9,0.00431586]
[1753049656066,5.0104,3717.2,3715.9,0.00431586]
[1753049656318,4.565,3717.2,3716.3,1.09394289]
[1753049656484,4.565,3717.2,3716.3,1.07610909]
[1753049656678,7.25519692,3717.2,3716.3,1.07610909]
[1753049656876,4.565,3717.2,3716.3,1.07610909]
[1753049657288,3.18022438,3717.2,3716.3,0.25090909]
[1753049657491,0.49002203,3717.8,3716.3,0.25090909]
[1753049657719,4.568,3717.7,3716.4,0.4505]
[1753049658018,4.567,3717.6,3716.4,0.4505]
[1753049658184,0.4564,3717.5,3716.4,2.69076734]
[1753049658370,0.4564,3717.5,3716.3,0.25090909]
[1753049658371,0.49002474,3717.5,3716.3,0.25090909]
[1753049658570,0.4564,3717.4,3716.3,0.25090909]
[1753049658774,2.69019692,3717.2,3716.3,0.25090909]
[1753049658983,2.72382438,3717.2,3716.3,0.25090909]
[1753049659198,6.97502438,3717.2,3716.3,0.25090909]
[1753049659403,1.2512,3717.2,3716.3,0.25090909]
[1753049659706,0.03362384,3717.6,3716.4,0.4505]
[1753049659905,4.581,3718.2,3717.3,0.8063]
[1753049659906,0.03361841,3718.2,3717.3,0.8063]
[1753049660115,1.2065,3718.9,3717.3,0.8063]
[1753049660509,4.61861299,3718.8,3717.3,0.8063]
[1753049660681,0.7501,3718.9,3717.7,2.6898121]
[1753049660886,2.72267495,3718.8,3717.4,0.4505]
[1753049661085,0.6,3718.6,3717.4,0.4505]
[1753049661317,0.1344,3717.4,3717.3,3.49642455]
[1753049661480,0.1344,3717.4,3717.3,3.94692455]
[1753049661681,0.6,3718.6,3717.3,0.01782634]
[1753049661682,1.4199,3718.6,3717.3,0.01782634]
[1753049661882,2.7229214,3718.5,3717.1,0.02]
[1753049662123,2.72287577,3718.5,3717.1,2.71025811]
[1753049662422,2.72287577,3718.5,3717.5,0.7854]
[1753049662423,0.41427758,3718.4,3717.5,0.7854]
[1753049662598,0.03361751,3718.3,3717.5,0.7854]
[1753049662776,2.6895023,3718.2,3717.5,0.7854]
[1753049662992,0.0336166,3718.4,3717.5,0.7854]
[1753049663701,0.7718,3719.0,3717.6,0.4505]
[1753049663900,0.7718,3719.7,3717.6,0.46831227]
[1753049664106,2.72206688,3719.6,3718.4,2.68931768]
[1753049664303,0.02,3719.9,3718.3,0.8234]
[1753049664516,0.02,3719.9,3719.1,2.68876703]
[1753049664720,0.02,3719.9,3718.5,0.4505]
[1753049664933,0.02,3719.9,3719.3,2.68861809]
[1753049665133,0.02,3719.9,3719.6,2.68845323]
[1753049665335,0.02,3719.9,3719.3,0.4505]
[1753049665504,0.02,3719.9,3719.8,2.68831657]
[1753049665889,0.02,3719.9,3719.8,3.13881657]
[1753049666093,0.02,3719.9,3719.8,3.98169771]
[1753049666530,0.02,3719.9,3719.8,3.96391657]
[1753049666838,1e-08,3719.9,3719.8,8.54691657]
[1753049667138,1e-08,3719.9,3717.9,2.68969041]
[1753049667431,1e-08,3719.9,3719.1,0.7935]
[1753049667799,1e-08,3719.9,3719.1,3.48226461]
[1753049667994,1e-08,3719.9,3719.2,0.4518]
[1753049668199,2.68824538,3719.9,3719.2,0.4518]
[1753049668394,1e-08,3719.9,3719.2,1.03753]
[1753049668595,1e-08,3719.9,3719.5,2.6885334]
[1753049668840,1e-08,3719.9,3719.3,3.14045845]
[1753049669008,1e-08,3719.9,3719.5,0.4518]
[1753049669338,1e-08,3719.9,3719.8,2.68831657]
[1753049669709,1e-08,3719.9,3719.8,3.14011657]
[1753049670036,1e-08,3719.9,3719.8,5.02495451]
[1753049670224,1e-08,3719.9,3719.8,3.98139771]
[1753049670428,1e-08,3719.9,3719.8,1.2753]
[1753049670604,1e-08,3719.9,3719.8,3.96361657]
[1753049671013,1e-08,3719.9,3719.8,8.56161657]
[1753049671255,1e-08,3719.9,3719.8,0.8235]
[1753049671539,1e-08,3719.9,3719.7,4.598]
[1753049671727,1e-08,3719.9,3719.8,3.14011657]
[1753049671902,1e-08,3719.9,3719.8,3.15789771]
[1753049672105,1e-08,3719.9,3719.8,4.97693306]
[1753049672745,1e-08,3719.9,3719.8,3.91471657]
[1753049672947,1e-08,3719.9,3719.8,8.50871657]
[1753049673258,1e-08,3719.9,3719.6,2.68845575]
[1753049673259,1e-08,3719.9,3719.4,0.1344]
[1753049673411,1e-08,3719.9,3719.8,2.68831657]
[1753049673755,1e-08,3719.9,3719.8,3.48069838]
[1753049673908,1e-08,3719.9,3719.8,5.18829433]
[1753049674107,0.1336,3720.6,3720.5,0.7746]
[1753049674332,0.02,3720.9,3720.8,2.68759406]
[1753049674639,0.02,3721.9,3720.8,2.68759406]
[1753049674640,0.1336,3721.7,3721.6,2.68701633]
[1753049674939,0.1336,3721.7,3721.6,7.73581633]
[1753049675145,0.02,3721.9,3721.8,2.68687194]
[1753049675452,0.02,3722.9,3722.2,2.6865832]
[1753049675604,0.02,3722.9,3722.2,3.4979832]
[1753049675808,0.02,3722.9,3722.2,3.96752101]
[1753049676005,1e-08,3722.9,3722.8,2.6861502]
[1753049676209,1e-08,3722.9,3722.8,13.19226522]
[1753049676451,1e-08,3722.9,3722.8,18.24106522]
[1753049677445,1e-08,3722.9,3722.8,18.23906522]
[1753049677651,0.2444029,3724.3,3723.1,3.45733376]
[1753049677825,0.2444029,3724.8,3723.8,2.68542886]
[1753049678036,0.2444029,3724.7,3723.8,7.27542886]
[1753049678268,0.2444029,3724.6,3723.8,8.49862886]
[1753049678557,0.2444029,3724.8,3723.8,3.90862886]
[1753049678767,0.2444029,3724.7,3723.8,3.92633781]
[1753049678946,0.2444029,3724.8,3723.8,8.51933781]
[1753049679137,0.2444029,3724.8,3723.8,9.162815]
[1753049679333,0.02,3724.9,3723.8,9.162815]
[1753049679644,0.02,3724.9,3723.8,3.90862886]
[1753049679841,0.02,3724.9,3723.8,8.51733781]
[1753049680041,0.02,3724.9,3723.8,8.49962886]
[1753049680359,0.02,3724.9,3723.8,8.49562886]
[1753049680564,0.2644029,3724.9,3723.8,8.49562886]